bitfinex/quotes_SOLUSD_20250125
["timestamp","ask_amount","ask_price","bid_price","bid_amount"]
[1737764960710,19.24235799,250.54,250.53,1.0]
[1737764960933,19.24235799,250.54,250.53,102.73128831]
[1737764961522,19.24235799,250.54,250.53,90.78128831]
[1737764961828,1.0,250.81,250.53,90.78128831]
[1737764961829,23.776884,250.69,250.53,89.78128831]
[1737764962220,19.49532746,250.81,250.58,1.0]
[1737764962421,19.24235799,250.84,250.64,1.0]
[1737764962637,19.24235799,250.84,250.67,1.0]
[1737764963444,0.99998647,250.78,250.46,0.26956]
[1737764963635,0.99998647,250.19,250.0,79.24822631]
[1737764963826,0.99998647,250.26,250.07,1.0]
[1737764964025,0.99998647,250.15,250.05,20.3]
[1737764964232,0.99998647,250.2,250.07,1.0]
[1737764964530,0.99998647,250.2,250.02,1.0]
[1737764964723,0.99998647,250.14,250.05,1.0]
[1737764966126,0.99998647,250.14,250.0,36.766938]
[1737764966330,0.99998647,250.14,250.01,12.95]
[1737764966633,0.99998647,250.09,250.01,81.1]
[1737764966837,0.99998647,250.07,250.0,117.866938]
[1737764967020,0.99998647,250.05,250.0,117.866938]
[1737764967745,0.99998647,250.1,250.0,117.866938]
[1737764968044,0.99998647,250.05,250.0,117.866938]
[1737764968251,0.99998647,250.09,250.0,36.766938]
[1737764968416,0.99998647,250.07,250.0,36.766938]
[1737764968611,0.99998647,250.09,250.0,36.766938]
[1737764968819,0.99998647,250.07,250.0,36.766938]
[1737764969121,0.99998647,250.01,250.0,36.766938]
[1737764969324,0.99998647,250.05,250.0,36.766938]
[1737764969530,0.99998647,250.01,250.0,36.766938]
[1737764970625,0.99998647,250.03,250.0,36.766938]
[1737764970944,0.99998647,250.01,250.0,36.766938]
[1737764971443,0.99998647,250.02,250.0,36.766938]
[1737764972024,0.99998647,250.06,250.0,36.766938]
[1737764972217,1.0,250.24,250.0,36.766938]
[1737764972218,0.99998647,250.08,250.0,36.766938]
[1737764972822,0.99998647,250.01,250.0,36.766938]
[1737764974941,0.99998647,250.04,250.0,36.766938]
[1737764975344,0.99998647,250.01,250.0,36.796938]
[1737764977226,1.99998647,249.79,249.78,0.5]
[1737764977526,2.0,249.74,249.47,1.0]
[1737764977830,1.0,249.69,249.49,1.0]
[1737764978045,1.0,249.6,249.46,1.0]
[1737764978224,1.39784785,249.71,249.39,1.0]
[1737764978429,7.425948,249.77,249.47,1.0]
[1737764978624,30.0,249.92,249.58,1.0]
[1737764978625,1.0,249.88,249.58,1.0]
[1737764978851,7.425948,249.85,249.6,1.0]
[1737764979025,7.425948,249.85,249.58,1.0]
[1737764979222,2.0,249.83,249.54,1.0]
[1737764979425,1.0,249.78,249.49,1.0]
[1737764979636,0.39784785,249.77,249.51,1.0]
[1737764979838,7.425948,249.85,249.55,1.0]
[1737764980037,7.425948,249.85,249.6,23.776884]
[1737764980249,7.425948,249.85,249.6,1.0]
[1737764980464,7.425948,249.85,249.57,1.0]
[1737764980750,7.425948,249.85,249.61,1.0]
[1737764980927,7.425948,249.85,249.64,23.776884]
[1737764981133,7.425948,249.85,249.57,1.0]
[1737764981651,20.0,249.81,249.58,23.776884]
[1737764982023,20.0,249.81,249.55,1.0]
[1737764982346,20.0,249.81,249.56,23.776884]
[1737764983251,7.425948,249.85,249.62,23.776884]
[1737764983433,7.425948,249.85,249.64,23.776884]
[1737764984144,2.0,249.94,249.64,23.776884]
[1737764984350,7.425948,249.9,249.64,23.776884]
[1737764984540,7.425948,249.9,249.67,24.776884]
[1737764984725,1.0,249.97,249.67,24.776884]
[1737764984925,7.425948,249.93,249.68,1.0]
[1737764985143,1.5211,249.99,249.69,36.726884]
[1737764985444,1.5211,249.99,249.77,23.776884]
[1737764985839,23.776884,249.98,249.67,1.0]
[1737764986047,24.17473185,249.98,249.67,1.0]
[1737764986454,0.39784785,249.98,249.7,23.776884]
[1737764986769,1.5211,249.99,249.77,23.776884]
[1737764987142,1.5211,249.99,249.74,1.0]
[1737764987441,1.5211,249.99,249.72,1.0]
[1737764987442,23.776884,249.98,249.72,1.0]
[1737764987755,23.776884,249.98,249.7,1.0]
[1737764987951,20.0,249.95,249.7,1.0]
[1737764988247,20.0,249.91,249.66,4.0054]
[1737764988852,20.0,249.89,249.66,4.0054]
[1737764989646,20.0,249.93,249.66,5.0054]
[1737764989834,20.0,249.93,249.69,1.0]
[1737764990035,0.063,249.98,249.73,23.776884]
[1737764990367,0.063,249.98,249.75,23.776884]
[1737764991233,0.063,249.98,249.75,24.776884]
[1737764991430,0.063,249.98,249.75,36.726884]
[1737764991830,0.063,249.98,249.77,35.726884]
[1737764992030,0.063,249.98,249.78,4.0035]
[1737764992254,0.063,249.98,249.79,36.726884]
[1737764992455,0.063,249.98,249.81,1.0]
[1737764992960,0.063,249.98,249.84,1.0]
[1737764993433,0.063,249.98,249.8,11.95]
[1737764993836,0.063,249.98,249.76,2.0]
[1737764994039,0.063,249.98,249.79,1.0]
[1737764994536,0.063,249.98,249.82,1.0]
[1737764994841,0.063,249.98,249.84,1.0]
[1737764995147,0.063,249.98,249.86,23.776884]
[1737764995350,0.063,249.98,249.88,23.776884]
[1737764995547,0.063,249.98,249.88,35.726884]
[1737764995954,0.063,249.98,249.85,4.0024]
[1737764996458,0.063,249.98,249.86,23.776884]
[1737764996842,0.063,249.98,249.85,4.0024]
[1737764997045,0.063,249.98,249.88,1.0]
[1737764997238,0.063,249.98,249.9,21.0]
[1737764997439,0.063,249.98,249.92,1.0]
[1737764997639,0.063,249.98,249.93,23.776884]
[1737764998357,0.063,249.98,249.95,23.776884]
[1737764998542,0.063,249.98,249.95,25.776884]
[1737764998946,0.063,249.98,249.97,24.776884]
[1737764999147,0.063,249.98,249.97,25.776884]
[1737764999465,0.063,249.98,249.97,24.776884]
[1737764999664,0.063,249.98,249.97,27.777284]
[1737764999861,0.063,249.98,249.97,23.776884]
[1737765000047,0.063,249.98,249.94,4.0009]
[1737765000371,0.063,249.98,249.95,23.776884]
[1737765000661,0.063,249.98,249.95,24.776884]
[1737765000858,0.063,249.98,249.96,11.95]
[1737765001260,0.063,249.98,249.97,24.776884]
[1737765001653,0.063,249.98,249.97,29.777284]
[1737765001857,0.0001,249.98,249.97,41.727284]
[1737765002064,0.063,250.23,250.06,1.0]
[1737765002256,0.063,250.23,250.07,23.776884]
[1737765002574,0.063,250.23,249.98,1.0]
[1737765002739,0.063,250.23,249.99,1.0]
[1737765002943,0.063,249.98,249.97,4.0004]
[1737765003474,0.063,249.98,249.97,27.777284]
[1737765003644,0.063,249.98,249.97,39.227284]
[1737765003846,0.063,249.98,249.97,40.227284]
[1737765004357,0.063,249.98,249.88,11.95]
[1737765004572,0.063,249.98,249.91,1.0]
[1737765004808,0.063,249.98,249.94,1.0]
[1737765005005,0.063,249.98,249.94,23.776884]
[1737765005308,0.063,249.98,249.93,23.776884]
[1737765005875,0.063,249.98,249.88,4.0019]
[1737765006117,0.063,249.98,249.84,4.0024]
[1737765006301,0.063,249.98,249.8,1.0]
[1737765006486,0.063,249.98,249.82,4.0028]
[1737765006975,0.063,249.98,249.9,23.776884]
[1737765008110,0.063,249.98,249.87,43.18]
[1737765008798,0.063,249.98,249.88,23.776884]
[1737765009115,0.02356934,249.98,249.87,43.18]
[1737765009714,0.02356934,249.98,249.88,23.776884]
[1737765010890,0.02356934,249.98,249.87,43.18]
[1737765012193,0.02356934,249.98,249.88,23.776884]
[1737765013105,0.02356934,249.98,249.87,43.18]
[1737765014097,0.02356934,249.98,249.71,4.0046]
[1737765014287,0.02356934,249.98,249.71,14.0162]
[1737765014488,0.02356934,249.98,249.78,1.0]
[1737765014682,0.02356934,249.98,249.97,0.03]
[1737765022708,0.02356934,249.98,249.78,43.18]
[1737765023604,0.02356934,249.98,249.79,23.776884]
[1737765023997,0.02356934,249.98,249.78,47.1834]
[1737765026714,0.02356934,249.98,249.79,23.776884]
[1737765027013,0.02356934,249.98,249.82,23.776884]
[1737765027892,0.02356934,249.98,249.84,23.776884]
[1737765029115,0.02356934,249.98,249.85,4.0024]
[1737765030111,0.02356934,249.98,249.82,0.03]
[1737765032803,0.02356934,249.98,249.79,14.00226933]
[1737765033408,0.02356934,249.98,249.75,14.014]
[1737765033914,20.02356934,249.98,249.75,14.014]
[1737765034417,0.02356934,249.98,249.75,14.014]
[1737765036097,0.02356934,249.98,249.78,23.776884]
[1737765036297,0.02356934,249.98,249.78,24.776884]
[1737765036611,0.02356934,249.98,249.8,23.776884]
[1737765037119,0.02356934,249.98,249.77,34.0312]
[1737765037297,0.02356934,249.98,249.77,30.0276]
[1737765037498,6.0619,249.85,249.72,0.03]
[1737765037719,1.608,249.84,249.72,0.03]
[1737765038020,1.608,249.84,249.72,4.0343]
[1737765038223,1.608,249.84,249.72,14.0455]
[1737765038530,1.608,249.84,249.73,24.776884]
[1737765038919,6.0619,249.85,249.73,24.776884]
[1737765039218,6.0619,249.92,249.74,1.0]
[1737765039415,6.0619,249.92,249.75,37.790884]
[1737765040304,6.0619,249.92,249.75,27.780884]
[1737765041523,6.0619,249.92,249.75,4.004]
[1737765043108,20.0,249.89,249.73,0.03]
[1737765049907,6.0619,249.92,249.73,0.03]
[1737765050110,1.0,249.9,249.73,0.03]
[1737765050410,0.39784785,249.89,249.73,0.03]
[1737765050612,6.45974785,249.92,249.73,0.03]
[1737765051010,1.5948,249.91,249.73,0.03]
[1737765051210,0.39784785,249.9,249.73,0.03]
[1737765052612,25.17473185,249.9,249.73,0.03]
[1737765052815,6.4188,249.89,249.73,0.03]
[1737765053018,0.39784785,249.88,249.73,0.03]
[1737765053409,20.0,249.86,249.73,0.03]
[1737765053607,20.0,249.82,249.73,0.03]
[1737765054329,20.0,249.8,249.73,0.03]
[1737765055633,16.01649,249.83,249.73,0.03]
[1737765056435,20.0,249.8,249.73,0.03]
[1737765056831,20.0,249.8,249.53,37.14289706]
[1737765056832,20.0,249.76,249.53,37.14289706]
[1737765057131,20.0,249.76,249.53,57.78903737]
[1737765057531,20.0,249.76,249.53,45.83903737]
[1737765057837,20.39784785,249.76,249.53,45.83903737]
[1737765058019,6.4188,249.75,249.53,40.53371609]
[1737765058227,1.5948,249.74,249.53,40.53371609]
[1737765058629,6.4188,249.73,249.53,37.14289706]
[1737765060332,25.17473185,249.72,249.49,37.14289706]
[1737765060635,20.0,249.69,249.49,37.14289706]
[1737765061017,20.0,249.7,249.49,37.14289706]
[1737765063427,6.4188,249.73,249.52,20.0]
[1737765063732,6.4188,249.73,249.51,1.0]
[1737765063733,6.4188,249.73,249.51,6.269]
[1737765063931,20.0,249.7,249.51,6.269]
[1737765064132,20.0,249.7,249.49,41.15099706]
[1737765064441,20.0,249.7,249.49,37.14289706]
[1737765064826,20.0,249.7,249.49,41.15089706]
[1737765065027,20.0,249.7,249.49,37.14289706]
[1737765065746,20.0,249.65,249.49,37.14289706]
[1737765067243,20.0,249.65,249.48,23.806884]
[1737765067543,20.0,249.65,249.48,0.03]
[1737765067746,8.0136,249.68,249.48,0.03]
[1737765068745,9.0136,249.68,249.48,0.03]
[1737765068944,9.41144785,249.68,249.48,0.03]
[1737765069547,1.0,249.66,249.48,0.03]
[1737765069730,1.6606,249.62,249.48,0.03]
[1737765069928,1.0,249.6,249.48,0.03]
[1737765070137,6.76384785,249.59,249.48,0.03]
[1737765071251,1.6606,249.56,249.25,19.1793]
[1737765071432,20.0,249.55,249.28,20.0]
[1737765071636,20.0,249.47,249.25,6.2293]
[1737765072033,20.0,249.47,249.24,61.50444326]
[1737765072235,6.366,249.5,249.25,11.95]
[1737765072443,6.366,249.5,249.28,20.0]
[1737765072830,6.366,249.5,249.29,23.776884]
[1737765073125,20.0,249.47,249.24,0.03]
[1737765073738,20.0,249.47,249.25,20.0]
[1737765073939,20.0,249.47,249.26,23.776884]
[1737765074942,31.803484,249.46,249.24,0.03]
[1737765075145,1.0,249.44,249.24,0.03]
[1737765075349,0.39784785,249.45,249.24,0.03]
[1737765075536,8.0266,249.46,249.24,0.03]
[1737765076132,1.00229655,249.45,249.24,0.03]
[1737765076546,8.0266,249.44,249.24,0.03]
[1737765076848,6.366,249.43,249.24,0.03]
[1737765077429,31.14518055,249.43,249.24,0.03]
[1737765077951,7.36829655,249.43,249.24,0.03]
[1737765078254,30.172984,249.4,249.24,0.03]
[1737765078451,23.776884,249.37,249.24,0.03]
[1737765078631,20.0,249.34,249.24,0.03]
[1737765078833,20.0,249.3,249.24,0.03]
[1737765083040,9.38774785,249.33,249.24,0.03]
[1737765083656,23.776884,249.29,249.01,2.99579784]
[1737765084154,7.9899,249.26,249.01,1.40269784]
[1737765084337,7.9899,249.26,249.01,4.0158]
[1737765084744,7.9899,249.26,249.0,2.1]
[1737765085547,23.776884,249.25,249.0,2.1]
[1737765085958,7.9899,249.26,249.0,2.1]
[1737765086137,1.0,249.25,249.0,2.1]
[1737765086531,7.9899,249.26,249.0,2.1]
[1737765086751,30.0,249.24,249.01,23.776884]
[1737765087060,20.0,249.21,249.01,23.776884]
[1737765087637,20.0,249.21,249.03,23.776884]
[1737765088445,20.0,249.23,249.03,23.776884]
[1737765088645,20.0,249.22,249.01,0.03]
[1737765089260,20.0,249.21,249.01,0.03]
[1737765089435,1.0033429,249.22,249.01,0.03]
[1737765089643,6.4291,249.21,249.01,0.03]
[1737765090250,6.4291,249.21,249.01,4.0459]
[1737765090450,6.4291,249.21,249.01,0.03]
[1737765090654,20.0,249.18,249.01,0.03]
[1737765091258,6.4291,249.21,249.01,0.03]
[1737765092440,20.0,249.18,249.01,0.03]
[1737765094160,6.4291,249.21,249.01,0.03]
[1737765094161,20.0,249.17,249.01,0.03]
[1737765096277,24.0171,249.17,249.01,0.03]
[1737765096473,30.0,249.16,249.01,0.03]
[1737765096636,30.0,249.16,249.01,23.806884]
[1737765096842,16.053901,249.25,249.03,23.776884]
[1737765097173,6.4291,249.28,249.03,23.776884]
[1737765097476,16.053901,249.27,249.03,23.776884]
[1737765098173,16.053901,249.27,249.03,35.726884]
[1737765098379,16.053901,249.27,249.07,35.726884]
[1737765098674,1.6465,249.33,249.07,23.776884]
[1737765098874,1.6465,249.33,249.08,20.0]
[1737765099071,1.6465,249.33,249.09,23.776884]
[1737765099283,16.051451,249.3,249.05,4.72]
[1737765099456,16.051451,249.3,249.06,4.015]
[1737765099782,15.7004,249.33,249.07,23.776884]
[1737765100677,20.0,249.3,249.09,23.776884]
[1737765100883,1.7095,249.33,249.09,35.726884]
[1737765101449,1.00307097,249.32,249.09,35.726884]
[1737765102354,1.00307097,249.32,249.13,27.790784]
[1737765102788,20.0,249.31,249.05,11.95]
[1737765103282,20.0,249.31,249.06,35.726884]
[1737765103484,20.0,249.31,249.04,4.0154]
[1737765103687,20.39784785,249.31,249.04,4.0154]
[1737765103858,20.0,249.31,249.05,23.776884]
[1737765104253,20.0,249.31,249.03,23.776884]
[1737765104471,20.0,249.31,249.05,23.776884]
[1737765104680,2.60806988,249.3,249.05,23.776884]
[1737765105481,2.60806988,249.3,249.09,35.726884]
[1737765105679,2.60806988,249.3,249.09,36.726884]
[1737765105865,1.0031038,249.3,249.09,35.726884]
[1737765106088,1.0031038,249.3,249.1,20.5795]
[1737765106284,1.0031038,249.3,249.13,23.776884]
[1737765106487,1.0031038,249.3,249.13,27.790784]
[1737765106693,1.0031038,249.3,249.21,31.95]
[1737765106862,1.0031038,249.3,249.27,23.776884]
[1737765107065,0.063,249.33,249.29,43.776884]
[1737765107265,1.60456845,249.34,249.32,43.776884]
[1737765107471,0.063,249.48,249.37,23.776884]
[1737765107710,0.063,249.48,249.41,41.783984]
[1737765107878,0.063,249.48,249.47,55.726884]
[1737765108261,3.01037041,249.6,249.53,4.0075]
[1737765108466,3.01037041,249.6,249.54,35.726884]
[1737765108674,25.37760014,249.74,249.54,35.726884]
[1737765108896,25.37760014,249.74,249.58,23.776884]
[1737765109197,25.37760014,249.74,249.51,20.46832718]
[1737765109396,25.37760014,249.74,249.6,20.32749486]
[1737765109596,6.2957,249.77,249.62,20.25650161]
[1737765109773,6.2957,249.77,249.5,4.0078]
[1737765109774,6.2957,249.77,249.64,20.15026792]
[1737765109993,6.2957,249.77,249.66,20.01779167]
[1737765110205,6.2957,249.77,249.68,20.68283513]
[1737765110391,1.5531,249.82,249.69,20.63287249]
[1737765110591,1.5531,249.82,249.69,0.22561468]
[1737765110791,1.5531,249.82,249.7,0.1684782]
[1737765111012,23.776884,249.78,249.46,20.09809393]
[1737765111187,20.0,249.75,249.45,20.16561561]
[1737765111383,20.0,249.75,249.47,20.46148071]
[1737765111584,20.0,249.75,249.42,20.56059748]
[1737765111585,20.0,249.71,249.42,20.56059748]
[1737765111815,20.39784785,249.71,249.42,20.56059748]
[1737765112030,20.0,249.62,249.29,4.0112]
[1737765112183,20.0,249.58,249.32,11.95]
[1737765112384,20.0,249.58,249.3,47.299]
[1737765112992,20.0,249.54,249.3,43.32]
[1737765113916,20.0,249.5,249.25,20.0]
[1737765114287,20.0,249.5,249.26,23.776884]
[1737765114697,20.0,249.5,249.25,23.776884]
[1737765114898,20.0,249.5,249.25,20.0]
[1737765115097,20.0,249.5,249.24,4.58]
[1737765115294,1.0,249.58,249.25,23.776884]
[1737765115511,23.776884,249.57,249.25,23.776884]
[1737765115717,1.39784785,249.58,249.25,23.776884]
[1737765116132,23.776884,249.55,249.25,23.776884]
[1737765116821,1.0,249.6,249.25,39.738784]
[1737765117125,1.0,249.6,249.29,23.776884]
[1737765117456,1.39784785,249.6,249.29,23.776884]
[1737765117625,1.0,249.58,249.29,23.776884]
[1737765117829,24.17473185,249.57,249.25,15.9619]
[1737765118050,24.17473185,249.57,249.24,4.58]
[1737765118051,23.776884,249.55,249.26,20.0]
[1737765118245,23.776884,249.55,249.2,10.0317]
[1737765118246,6.1374,249.52,249.21,4.0126]
[1737765118453,6.1374,249.52,249.25,20.0]
[1737765118826,6.1374,249.52,249.28,20.0]
[1737765119021,20.0,249.49,249.28,35.726884]
[1737765119226,6.1374,249.52,249.32,23.776884]
[1737765119945,20.0,249.49,249.22,4.0125]
[1737765120140,20.0,249.49,249.23,11.95]
[1737765120339,20.0,249.49,249.24,23.776884]
[1737765120649,20.0,249.49,249.22,24.0125]
[1737765120850,20.0,249.49,249.26,20.0]
[1737765121063,20.0,249.49,249.25,20.0]
[1737765121359,20.0,249.49,249.3,23.776884]
[1737765122058,20.0,249.49,249.26,11.95]
[1737765122059,20.0,249.49,249.28,11.95]
[1737765122241,6.1374,249.52,249.32,11.95]
[1737765122439,6.1374,249.65,249.4,23.776884]
[1737765122630,6.1374,249.65,249.38,11.95]
[1737765122834,20.0,249.62,249.35,1.0]
[1737765123080,20.0,249.62,249.32,30.0]
[1737765123364,6.1374,249.65,249.36,23.776884]
[1737765123538,6.1374,249.65,249.37,4.0101]
[1737765123744,0.063,249.49,249.37,4.0101]
[1737765123948,0.063,249.49,249.41,23.776884]
[1737765124251,0.063,249.49,249.4,20.0]
[1737765124449,0.063,249.49,249.44,20.0]
[1737765124633,0.063,249.49,249.45,23.776884]
[1737765125254,0.063,249.49,249.48,43.776884]
[1737765125557,6.1374,249.75,249.49,24.776884]
[1737765125857,6.1374,249.75,249.53,23.776884]
[1737765126358,6.1374,249.75,249.48,4.0083]
[1737765126540,6.1374,249.75,249.49,23.776884]
[1737765126741,6.1374,249.75,249.51,23.776884]
[1737765128357,6.1374,249.75,249.41,11.95]
[1737765128358,28.25502091,249.74,249.4,4.0096]
[1737765128529,0.39784785,249.73,249.42,20.38]
[1737765128730,4.87598476,249.73,249.42,24.3892]
[1737765129033,4.87598476,249.73,249.43,23.776884]
[1737765129231,6.1374,249.75,249.43,23.776884]
[1737765129653,6.1374,249.75,249.46,43.776884]
[1737765129951,20.0,249.72,249.47,23.776884]
[1737765130655,20.0,249.72,249.48,4.0083]
[1737765130853,20.0,249.72,249.42,10.0232]
[1737765131157,20.0,249.72,249.46,23.776884]
[1737765132356,20.0,249.72,249.47,4.0084]
[1737765133157,20.0,249.72,249.39,4.0097]
[1737765133454,20.0,249.72,249.42,23.776884]
[1737765134657,20.0,249.72,249.44,23.776884]
[1737765135538,20.0,249.72,249.42,47.786184]
[1737765135743,20.063,249.72,249.42,47.786184]
[1737765136251,0.063,249.72,249.47,20.0]
[1737765136561,0.063,249.72,249.48,23.776884]
[1737765137555,0.063,249.72,249.49,4.0081]
[1737765137951,0.063,249.72,249.45,4.0088]
[1737765138560,0.063,249.72,249.47,23.776884]
[1737765139033,0.063,249.72,249.48,4.0083]
[1737765139763,20.063,249.72,249.48,4.0083]
[1737765139942,20.063,249.72,249.43,15.9591]
[1737765140146,20.063,249.72,249.44,35.726884]
[1737765141243,20.063,249.72,249.46,23.776884]
[1737765142242,20.063,249.72,249.47,4.0084]
[1737765143450,20.063,249.72,249.45,37.807684]
[1737765143968,20.063,249.72,249.45,49.757684]
[1737765144463,0.063,249.72,249.45,49.757684]
[1737765146172,0.063,249.72,249.49,27.784984]
[1737765147381,0.063,249.72,249.49,49.755384]
[1737765148068,20.063,249.72,249.49,37.805384]
[1737765148362,20.0,249.68,249.41,4.0094]
[1737765148568,1.5594,249.67,249.41,4.0094]
[1737765148776,1.5594,249.67,249.44,0.03]
[1737765149572,1.5594,249.67,249.44,23.806884]
[1737765149879,20.0,249.63,249.44,0.03]
[1737765154170,6.5911,249.6,249.44,0.03]
[1737765154350,0.39784785,249.59,249.44,0.03]
[1737765155084,6.5911,249.6,249.44,0.03]
[1737765155460,23.776884,249.55,249.26,0.03]
[1737765155660,1.5594,249.52,249.26,0.03]
[1737765155867,6.5911,249.51,249.26,4.0418]
[1737765156379,0.39784785,249.5,249.26,0.03]
[1737765156681,6.5911,249.49,249.26,0.03]
[1737765156991,6.5911,249.46,249.26,0.03]
[1737765157196,6.5911,249.44,249.26,0.03]
[1737765157763,20.0,249.41,249.26,0.03]
[1737765158204,6.5911,249.35,249.0,22.70090455]
[1737765158363,20.0,249.32,249.06,20.41]
[1737765158695,20.0,249.32,249.07,20.0]
[1737765159474,20.0,249.32,249.05,11.95]
[1737765159475,20.0,249.32,249.08,24.0147]
[1737765159879,20.0,249.32,249.09,23.776884]
[1737765160379,20.0,249.32,249.08,24.0147]
[1737765160778,20.0,249.32,249.09,23.776884]
[1737765160988,19.96049548,249.32,249.12,20.0]
[1737765161686,19.96049548,249.32,249.11,23.776884]
[1737765162286,19.96049548,249.32,249.08,4.0147]
[1737765162590,19.96049548,249.32,249.11,23.776884]
[1737765163674,19.96049548,249.32,249.13,23.776884]
[1737765163991,6.5911,249.35,249.17,35.726884]
[1737765164306,6.5911,249.35,249.2,20.0]
[1737765164798,6.5911,249.35,249.21,23.776884]
[1737765165001,6.5911,249.35,249.22,4.0125]
[1737765165378,6.5911,249.35,249.23,23.776884]
[1737765165579,6.5911,249.35,249.27,23.776884]
[1737765165799,8.1505,249.48,249.27,23.776884]
[1737765166882,8.1505,249.48,249.28,4.0115]
[1737765167674,8.1505,249.48,249.29,23.776884]
[1737765168998,8.1505,249.48,249.32,23.776884]
[1737765169589,8.1505,249.48,249.29,23.776884]
[1737765169769,8.1505,249.48,249.28,37.817184]
[1737765169990,8.1505,249.48,249.3,4.0112]
[1737765170388,8.1505,249.48,249.31,23.776884]
[1737765171391,8.1505,249.48,249.35,23.776884]
[1737765172111,8.1505,249.48,249.37,23.776884]
[1737765173532,8.1505,249.48,249.27,11.95]
[1737765173760,8.1505,249.48,249.26,14.0414]
[1737765174025,8.1505,249.48,249.27,0.03]
[1737765174221,8.2135,249.48,249.27,0.03]
[1737765175323,6.92484785,249.47,249.27,0.03]
[1737765175903,6.527,249.47,249.27,0.03]
[1737765178037,20.0,249.44,249.27,0.03]
[1737765178936,20.0,249.42,249.27,0.03]
[1737765179142,6.4237,249.45,249.27,0.03]
[1737765180250,6.4237,249.45,249.29,35.726884]
[1737765180550,6.4237,249.45,249.32,35.726884]
[1737765180960,6.4237,249.45,249.32,23.776884]
[1737765181829,6.4237,249.45,249.33,4.0107]
[1737765182024,6.4237,249.45,249.28,27.788384]
[1737765182231,6.4237,249.45,249.27,0.03]
[1737765182541,20.0,249.42,249.27,0.03]
[1737765182747,6.4237,249.41,249.27,0.03]
[1737765182934,20.0,249.38,249.27,0.03]
[1737765184620,20.0,249.33,249.09,4.0145]
[1737765185037,20.0,249.33,249.1,23.776884]
[1737765185240,20.0,249.33,249.12,35.726884]
[1737765185441,6.4237,249.36,249.16,23.776884]
[1737765186063,6.4237,249.36,249.16,27.790284]
[1737765186567,6.4237,249.36,249.09,4.0146]
[1737765186860,6.82154785,249.36,249.09,4.0146]
[1737765187163,6.82154785,249.36,249.09,4.0446]
[1737765187369,11.29968476,249.36,249.09,4.0446]
[1737765187573,10.90183691,249.36,249.09,15.9946]
[1737765187773,10.90183691,249.36,249.1,23.776884]
[1737765187962,10.90183691,249.36,249.11,4.0142]
[1737765188465,6.82154785,249.36,249.11,4.0142]
[1737765188836,1.5344,249.35,249.09,0.03]
[1737765189043,6.0418,249.33,249.1,23.776884]
[1737765189241,6.0418,249.33,249.09,4.0445]
[1737765190070,6.0418,249.33,249.1,27.791184]
[1737765190649,6.43964785,249.33,249.09,0.03]
[1737765191054,1.5344,249.32,249.09,4.0445]
[1737765192169,1.5344,249.26,249.0,2.1]
[1737765192342,20.0,249.22,249.0,6.116]
[1737765192963,6.0418,249.21,249.0,6.116]
[1737765193354,6.0418,249.19,249.0,2.1]